Workbook

Sheet Read Me
A1: Air Pollution Control Cost Estimation Spreadsheet
A2: For Thermal and Catalytic Oxidizers
A3: U.S. Environmental Protection Agency
A4: Air Economics Group
A5: Health and Environmental Impacts Division
A6: Office of Air Quality Planning and Standards
A7: (January 2018)
B9: This spreadsheet allows users to estimate the capital and annualized costs for installing and operating oxidizers. Oxidizers control volatile organic compounds (VOCs) and hazardous air pollutants (HAP) from industrial waste gas streams by oxidizing organic compounds to carbon dioxide and water. If the waste gas contains chlorinated or sulfonated organic compounds, HCl and SO2 will be generated, which may require acid gas controls, such as a wet scrubber. There are two major types of oxidizers: thermal and catalytic oxidizers.
B11: The calculation methodologies used in this spreadsheet are those presented in the U.S. EPA's Air Pollution Control Cost Manual. This spreadsheet is intended to be used in combination with the Control Cost Manual. For a detailed description of the oxidizer control technology and cost methodology, see Section 3.2, Chapter 2 (Incinerators and Oxidizers) of the Air Pollution Control Cost Manual (as updated in 2016). Additional controls may be necessary for some industrial waste gas streams (e.g., chlorinated and sulfur-containing organic compounds that produce acid gases when oxidized). Costs for additional control technologies can be estimated using the methods provided in other chapters of the cost manual. A copy of the Control Cost Manual is available on the U.S. EPA's "Clean Air Technology Center" website at: http://www3.epa.gov/ttn/catc/products.html#cccinfo.
B13: The spreadsheet can be used to estimate capital and annualized costs for the following types of oxidizers:
D15: Incinerator Type | E15: Total Waste Gas Flowrate (scfm)
D16: Thermal Recuperative | E16: 500 - 50,000
D17: Thermal Regenerative | E17: 10,000 - 100,000
D18: Fixed-Bed/Monolith Catalytic | E18: 2,000 - 50,000
D19: Fluid-Bed Catalytic | E19: 2,000 - 25,000
B21: Installation costs for a given incinerator could deviate significantly from costs generated using this spreadsheet depending on the site conditions.
B22: Note: This spreadsheet is designed to calculate the design parameters and costs for thermal and catalytic oxidizers used to control waste gas streams that have an oxygen content of at least 20%. If the oxygen content is less than 20%, the waste stream parameters should be adjusted to include auxiliary air sufficient to increase the oxygen content of the waste gas stream above 20%.
B24: Instructions
B25: Step 1: Please select on the Data Inputs tab and click on the Reset Form button. This will reset the inlet flow rate, pressure drop, fan efficiency, inlet temperature, control efficiency, interest rate, labor rates, electricity and natural gas prices, and the contingency factor to default factors. All other data entry fields will be blank.
B26: Step 2: Select the type of oxidizer from the options provided in the pull down menu. The operating temperature will be set to a default value of 2000oF for a regenerative thermal oxidizer, 1600oF for a recuperative thermal oxidizer and 900oF for a catalytic oxidizer. If you select a catalytic oxidizer, the catalyst life, catalyst unit cost, and space velocity factor will be set to default values. You may use site-specific values instead of the default values; however, you should document the source of each value you use.
B27: Step 3: Complete all of the cells highlighted in yellow. As noted above, some of the highlighted cells are pre-populated with default values based on 2016 data. Users should document the source of all values entered in accordance with the recommendations provided in the Control Cost Manual. Use of actual values other than the default values in this spreadsheet, if appropriately documented, is acceptable.
B28: Step 4: Once all of the data fields are complete, select the Design Parameters tab to see the calculated design parameters and the Cost Estimate tab to view the calculated cost data for the installation and operation of the oxidizer. If the %LEL for the waste gas exceeds 25%, the spreadsheet adjusts the concentrations and waste gas flow rate to account for the dilution air needed to reduce the %LEL of the waste gas below the 25% threshold. If the oxygen content is less than 20%, auxiliary air must be added.

Sheet Data Inputs
A1: Data Inputs
W2: Type of Oxidizer:
A3: Select the type of oxidizer | V3: 3 | W3: Click to select oxidizer type
W4: Recuperative Thermal Oxidizer
A5: Enter the following information for your emission source: | W5: Catalytic Oxidizer - Fixed Bed
W6: Catalytic Oxidizer - Monolith
A7: Composition of Inlet Gas Stream | W7: Catalytic Oxidizer - Fluid Bed
A8: Pollutant Name | B8: Concentration (ppmv) | C8: Lower Explosive Limit (LEL) (ppmv)* | D8: Heat of Combustion (Btu/scf) | E8: Molecular Weight | G8: Note: The lower explosion limit (LEL), heat of combustion and molecular weight for some commonly used VOC/HAP are provided in the table below. | W8: Regenerative Thermal Oxidizer
A9: Benzene | B9: 1000 | C9: 14000 | D9: 3475 | E9: 78.11 | W9: Calculation of Mass of constituent Controlled | X9: =((B9*E9*60*$B$23)/(386.5*1000000))*($B$22/2000)*($B$29/100) -> 1051.59301
A10: Chloromethane | B10: 1000 | C10: 82500 | D10: 705 | E10: 50.49 | X10: 679.745629
X11: 0
X12: 0
X13: 0
X14: 0
X15: 0
X16: 0
X17: 0
X18: 0
W19: Total Mass of VOC/HAP controlled = | X19: =SUM(X9:X18) -> 1731.338639 | Y19: tons/year
A20: Enter the design data for the proposed oxidizer: | W20: Heat Recovery:
H21: =IF(AND(V3>1,V3<6,X21=5),"* The Heat Recovery value you selected is not valid for the type of oxidizer selected. You must select a value between 0 and 70 percent for a "&(IF(V3=2,"recuperative thermal ","catalytic "))&"oxidizer.", " ") ->  | Q21: 4 | W21: 0 percent | X21: 1
A22: Number of operating hours/year | B22: 8760 | C22: hours/year | E22: Percent Energy Recovery (HR) = | W22: 35 percent
A23: Inlet volumetric flow rate(Qwi) at 77oF and 1 atm. | B23: 20000 | C23: =IF(B23=20000, "scfm*", "scfm") -> scfm* | D23: =IF(B23=20000,"* 20,000 scfm is a default volumetric flow rate. User should enter actual value, if known."," ") -> * 20,000 scfm is a default volumetric flow rate. User should enter actual value, if known. | W23: 50 percent
A24: Inlet volumetric flow rate(Qwi) (actual conditions) | B24: 20900 | C24: =IF(B24=20900, "acfm*", "acfm") -> acfm* | D24: =IF(B24=20900,"* 20,900 acfm is a default volumetric flow rate. User should enter actual value, if known."," ") -> * 20,900 acfm is a default volumetric flow rate. User should enter actual value, if known. | W24: 70 percent
A25: Pressure drop (ΔP) | B25: 23 | C25: =IF(B25=23, "inches of water*", "inches of water") -> inches of water* | D25: =IF(OR(B25=23,B25=19),"* 23 inches of water is the default pressure drop for thermal oxidizers; 19 inches of water is the default pressure drop for catalytic oxidizers. Enter actual value, if known."," ") -> * 23 inches of water is the default pressure drop for thermal oxidizers; 19 inches of water is the default pressure drop for catalytic oxidizers. Enter actual value, if known. | W25: Not Applicable
A26: Motor/Fan Efficiency (ε) | B26: 60 | C26: =IF(B26=60,"percent*","percent") -> percent* | D26: =IF(B26=60,"* 60% is a default fan efficiency. User should enter actual value, if known."," ") -> * 60% is a default fan efficiency. User should enter actual value, if known.
A27: Inlet Waste Gas Temperature (Twi) | B27: 100 | C27: =IF(B27=100, " °F*", " °F") -> °F* | D27: =IF(B27=100,"* 100°F is a default temperature. User should enter actual value, if known."," ") -> * 100°F is a default temperature. User should enter actual value, if known.
A28: Operating Temperature (Tfi) | B28: 900 | C28: =IF(B28=2000, " °F*", " °F") -> °F | D28: =IF(V3=2,"* Note: Default value for Tfi is 1600°F for thermal recuperative oxidizers. Use actual value if known.",IF(OR(V3=3,V3=4,V3=5),"* Note: Default value for Tfi is 900°F for catalytic oxidizers. Use actual value if known. Tfi for catalytic oxidizers is typically between 300 and 900°F.",(IF(V3=6,"* Note: Default value for Tfi is 2000°F for thermal regenerative oxidizers. Use actual value if known. Tfi for regenerative oxidizers typically between 1800 and 2000°F."," ")))) -> * Note: Default value for Tfi is 900°F for catalytic oxidizers. Use actual value if known. Tfi for catalytic oxidizers is typically between 300 and 900°F.
A29: Destruction and Removal Efficiency (DRE) | B29: 99 | C29: =IF(B29=99, "percent*", "percent") -> percent* | D29: =IF(B29=99,"* 99 percent is a default control efficiency. User should enter actual value, if known."," ") -> * 99 percent is a default control efficiency. User should enter actual value, if known.
A30: Estimated Equipment Life | B30: 20 | C30: =IF(B30=20, "Years*", "Years") -> Years* | D30: =IF(B30=20,"* 20 years is the typical equipment life. User should enter actual value, if known."," ") -> * 20 years is the typical equipment life. User should enter actual value, if known.
A31: Heat Loss (η) | B31: 0 | C31: =IF(B31=1, "percent*", "percent") -> percent | D31: =IF(B31=1,"* 1 percent is a default value for the heat loss. User should enter actual value, if known. Heat loss is typically between 0.2 and 1.5%."," ") -> 
A32: Catalyst Data:
A33: Estimated catalyst life (y) | B33: 4 | C33: years | D33: =IF(B33=4,"* 4 years is a default value. User should enter actual value, if known."," ") -> * 4 years is a default value. User should enter actual value, if known.
A34: Catalyst Unit Cost (CC) | B34: 350 | C34: $/ft3
A35: Space velocity for catalyst (Φ) | B35: 30000 | C35: /hour | D35: =IF(B35=30000,"* 30,000 per hour is a default value. User should enter actual value, if known."," ") -> * 30,000 per hour is a default value. User should enter actual value, if known.
A38: Enter the cost data:
A40: Desired dollar-year | B40: 2016
A41: ="CEPCI* for " & B40 -> CEPCI* for 2016 | B41: 541.7 | C41: =IF(B40=2014," ","Enter the CEPCI value for "&B40) -> Enter the CEPCI value for 2016 | E41: 390.6 | F41: 1999 CEPCI
A42: Annual Interest Rate (i) | B42: 4.25 | C42: Percent
A43: Electricity (Costelect) | B43: 0.0674 | C43: $/kWh | G43: =IF(B43=0.0674,"* $0.0674/kWh is a default price for electicity. User should enter actual value, if known."," ") -> * $0.0674/kWh is a default price for electicity. User should enter actual value, if known.
A44: Natural Gas Fuel Cost (Costfuel) | B44: 0.00384 | C44: $/scf | G44: =IF(B44=0.00384,"* $0.00384/scf is a default price for natural gas. User should enter actual value, if known."," ") -> * $0.00384/scf is a default price for natural gas. User should enter actual value, if known.
A45: Operator Labor Rate | B45: 26.61 | C45: per hour | G45: =IF(B45=26.61,"* $26.61 per hour is a default labor rate. User should enter actual value, if known."," ") -> * $26.61 per hour is a default labor rate. User should enter actual value, if known.
A46: Maintenance Labor rate | B46: 27.4 | C46: per hour | G46: =IF(B46=27.4,"* $27.40 per hour is a default labor rate. User should enter actual value, if known."," ") -> * $27.40 per hour is a default labor rate. User should enter actual value, if known.
A47: Contingency Factor (CF) | B47: 10 | C47: Percent | G47: =IF(B47=10,"* 10 percent is a default value for construction contingencies. User may enter values between 5 and 15 percent."," ") -> * 10 percent is a default value for construction contingencies. User may enter values between 5 and 15 percent.
B48: * CEPCI is the Chemical Engineering Plant Cost Escalation/De-escalation Index. The use of CEPCI in this spreadsheet is not an endorsement of the index for purposes of cost escalation or de-escalation, but is there merely to allow for availability of a well-known cost index to spreadsheet users. Use of other well-known cost indexes (e.g., M&S) is acceptable.
A51: Data Sources for Default Values Used in Calculations:
A53: Parameters for Common Compounds:
A55: Compound | B55: LEL (ppmv) | C55: Heat of Combustion (Btu/scf) | D55: Molecular Weight
A56: Methane* | B56: 50000 | C56: 911 | D56: 16.04
A57: Ethane | B57: 30000 | C57: 1631 | D57: 30.07
A58: Propane | B58: 21000 | C58: 2353 | D58: 44.09
A59: Butane | B59: 19000 | C59: 3101 | D59: 58.12
A60: Pentane | B60: 14000 | C60: 3709 | D60: 72.15
A61: Hexane | B61: 11000 | C61: 4404 | D61: 86.17
A62: Octane | B62: 10000 | C62: 5796 | D62: 114.23
A63: Nonane | B63: 8000 | C63: 6493 | D63: 128.25
A64: Decane | B64: 8000 | C64: 7190 | D64: 142.28
A65: Ethylene** | B65: 27000 | C65: 1499 | D65: 28.05
A66: Propylene | B66: 20000 | C66: 2182 | D66: 42.08
A67: Cyclohexane | B67: 13000 | C67: 4180 | D67: 84.16
A68: Benzene** | B68: 14000 | C68: 3475 | D68: 78.11
A69: Toluene** | B69: 11000 | C69: 4274 | D69: 92.13
A70: Methyl Chloride (Chloromethane)** | B70: 82500 | C70: 705 | D70: 50.49
A71: Footnotes
A72: * Greenhouse gas.
A73: ** Hazardous air pollutant.
A75: Data Element | B75: Default Value | C75: Sources for Default Values used in the calculation . . . | F75: If you used your own site-specific values, please enter the value used and the reference source . . . | I75: Recommended data sources for site-specific information
A76: Catalyst Cost ($/ft3) | I76: Check with catalyst vendor.
A77: Electricity Cost ($/kWh) | B77: 0.0674 | C77: Average annual electricity cost for industrial plants is based on 2016 price data compiled by the U.S. Energy Information Administration from data reported on Form EIA-861 and 861S, (http://www.eia.gov/electricity/data.cfm#sales). | I77: Plant's utility bill or use U.S. Energy Information Administration (EIA) data for most recent year. Available at http://www.eia.gov/electricity/data.cfm#sales.
A78: Fuel Cost ($/MMBtu) | B78: 3.34 | C78: Annual average price paid for natural gas by industrial facilities in 2016 from the U.S. Energy Information Administration. Available at http://www.eia.gov/dnav/ng/hist/n3035us3A.htm. | I78: Check with fuel supplier or use U.S. Energy Information Administration (EIA) data for most recent year." Available at Available at http://www.eia.gov/dnav/ng/hist/n3035us3A.htm.
A79: Operator Labor ($/hour) | B79: 26.61 | C79: Bureau of Labor Statistics, May 2016 National Occupational Employment and Wage Estimates – United States, May 2016 (https://www.bls.gov/oes/current/oes_nat.htm). Hourly rates for operators based on data for plant and System Operators – other (51-8099). | I79: Use plant-specific labor rate.
A80: Maintenance Labor ($/hour) | B80: 27.4 | C80: Bureau of Labor Statistics, May 2016 National Occupational Employment and Wage Estimates – United States, May 2016 (https://www.bls.gov/oes/current/oes_nat.htm). Hourly rates for maintenance workers based on electrical and electronics commercial and industrial equipment repairers (49-2094). | I80: Use plant-specific labor rate.

Sheet Design Parameters
A1: Design Parameters
A3: The following design parameters for the oxidizer were calculated based on the values entered on the Data Inputs tab. These values were used to prepare the costs shown on the Cost Estimate tab.
A6: Composition of Inlet Gas Stream
A7: Pollutant Name | B7: Concentration in Waste Stream (ppmv) From Data Inputs Tab | C7: Adjusted Concentration with Dilution Air (ppmv)
A8: ='Data Inputs'!A9 -> Benzene | B8: ='Data Inputs'!B9 -> 1000 | C8: =IF(OR($D$33<25, B8=0), "NA", B8*$R$9) -> NA | R8: Dilution Air Factor | W8: =IF(C8="NA", B8, C8) -> 1000
A9: ='Data Inputs'!A10 -> Chloromethane | B9: ='Data Inputs'!B10 -> 1000 | C9: NA | P9: ='Data Inputs'!B9/(Q$9*'Data Inputs'!C9) -> 3.571428571e-05 | Q9: =SUM('Data Inputs'!B9:B18) -> 2000 | R9: =(P28*0.249)/Q9 -> 2.980259067 | S9: =C8/($C$18*'Data Inputs'!C9) ->  | W9: 1000
A10: ='Data Inputs'!A11 -> 0 | B10: ='Data Inputs'!B11 -> 0 | C10: NA | P10: ='Data Inputs'!B10/(Q$9*'Data Inputs'!C10) -> 6.060606061e-06 | S10: =C9/($C$18*'Data Inputs'!C10) ->  | W10: 0
A11: ='Data Inputs'!A12 -> 0 | B11: ='Data Inputs'!B12 -> 0 | C11: NA | P11: ='Data Inputs'!B11/(Q$9*'Data Inputs'!C11) ->  | S11: =C10/($C$18*'Data Inputs'!C11) ->  | W11: 0
A12: ='Data Inputs'!A13 -> 0 | B12: ='Data Inputs'!B13 -> 0 | C12: NA | P12: ='Data Inputs'!B12/(Q$9*'Data Inputs'!C12) ->  | S12: =C11/($C$18*'Data Inputs'!C12) ->  | W12: 0
A13: ='Data Inputs'!A14 -> 0 | B13: ='Data Inputs'!B14 -> 0 | C13: NA | P13: ='Data Inputs'!B13/(Q$9*'Data Inputs'!C13) ->  | S13: =C12/($C$18*'Data Inputs'!C13) ->  | W13: 0
A14: ='Data Inputs'!A15 -> 0 | B14: ='Data Inputs'!B15 -> 0 | C14: NA | P14: ='Data Inputs'!B14/(Q$9*'Data Inputs'!C14) ->  | S14: =C13/($C$18*'Data Inputs'!C14) ->  | W14: 0
A15: ='Data Inputs'!A16 -> 0 | B15: ='Data Inputs'!B16 -> 0 | C15: NA | P15: ='Data Inputs'!B15/(Q$9*'Data Inputs'!C15) ->  | S15: =C14/($C$18*'Data Inputs'!C15) ->  | W15: 0
A16: ='Data Inputs'!A17 -> 0 | B16: ='Data Inputs'!B17 -> 0 | C16: NA | P16: ='Data Inputs'!B16/(Q$9*'Data Inputs'!C16) ->  | S16: =C15/($C$18*'Data Inputs'!C16) ->  | W16: 0
A17: ='Data Inputs'!A18 -> 0 | B17: ='Data Inputs'!B18 -> 0 | C17: NA | P17: ='Data Inputs'!B17/(Q$9*'Data Inputs'!C17) ->  | S17: =C16/($C$18*'Data Inputs'!C17) ->  | W17: 0
A18: Total | B18: =SUM(B8:B17) -> 2000 | C18: =SUM(C8:C17) -> 0 | P18: ='Data Inputs'!B18/(Q$9*'Data Inputs'!C18) ->  | S18: =C17/($C$18*'Data Inputs'!C18) -> 
A20: Constants used in calculations:
A22: Temperature of auxiliary fuel (Taf) = | B22: Reference Temperature (Tref) = | C22: 77 | D22: °F
A23: Density of auxiliary Fuel at 77 °F (ρaf) = | C23: 0.0408 | D23: lb/ft3
A24: Heat Input of auxiliary fuel (-Δhcaf) = | C24: 21502 | D24: Btu/lb
A25: Density of waste gas at 77 °F (ρwi) = | C25: 0.0739 | D25: lb/ft3
A26: Mean Heat Capacity of Air (Cpmair) = | B26: (For catalytic oxidizers) | C26: 0.248 | D26: Btu/lb °F
A27: Mean Heat Capacity of Air (Cpmair) | B27: (For thermal oxidizers) | C27: 0.255 | D27: Btu/lb °F
O28: LEL of Mix | P28: =1/(SUMIF(P9:P18,">0")) -> 23937.82383 | S28: =(SUMIF(S9:S18,">0"))^-1 -> 
A29: Parameter | B29: Equation | D29: Calculated Value | E29: Units | F29: Calculated Value | G29: Units
A30: Sum of volume fraction of combustible components = | B30: = (∑xi) = | D30: =SUM('Data Inputs'!B9:B18) -> 2000 | E30: ppmv
A31: Lower Explosive Limit of waste gas (LELmix) | B31: = [∑((xj)/((∑xi) × LELj))]-1 = | D31: =P28 -> 23937.82383 | E31: ppmv
B32: Where xj is the volume fraction and LELj the lower explosive limit for each combustible component in the waste gas.
A33: % LELmix | B33: = (Total Combustible Conc. In Mixture/LELmix) × 100 = | D33: =(D30/D31)*100 -> 8.354978355 | E33: =IF(D33<25,"percent","percent*") -> percent | F33: =IF(D33>25, "*Note: Since the LEL of the waste gas stream is above 25%, dilution air must be added to bring the LEL of the mixture below 25%. The concentrations of each pollutant adjusted for dilution air are shown in the table above.", "* Note: Since the LEL of the waste gas stream is below 25%, no dilution air is needed.") -> * Note: Since the LEL of the waste gas stream is below 25%, no dilution air is needed.
A34: Dilution Factor | B34: = (LELmix x 0.249)/(∑xi) = | D34: =IF(D33>25,D31*0.249/D30, "Not applicable") -> Not applicable | E34: =IF(D33<25," ","*") -> 
A35: Lower Explosive Limit (LEL) of waste gas after addition of dilution air | B35: = (Total Adjusted Conc. With Dilution Air/LELmix) × 100 = | D35: =IF(D33<25, "Not Applicable", (C18/S28)*100) -> Not Applicable | E35: =IF(D33<25," ","percent*") -> 
A36: ="Inlet volumetric flow rate(Qwi)"&IF(D33>25, " (Adjusted for dilution air)", " ")&"at 77°F and 1 atm." -> Inlet volumetric flow rate(Qwi) at 77°F and 1 atm. | B36: ="(From Data Inputs Tab"&(IF(D34="Not applicable",") = ","; adjusted for dilution air) =")) -> (From Data Inputs Tab) = | D36: =IF(D35="Not applicable", 'Data Inputs'!B23, (('Data Inputs'!B23*(1-D34))+'Data Inputs'!B23)) -> 20000 | E36: scfm
A37: Oxygen Content of gas stream | B37: = 100 - (∑xj × 100/106) x 0.209 = | D37: =IF(D33<25, (100-((B18/1000000))*100)*0.209, (100-(C18/1000000)*100)*0.209) -> 20.8582 | E37: percent | F37: =IF(D37<20, "* Stop: Waste gas contains less than 20% oxygen. Cost methodology applies only to waste gas streams with an oxygen content of at least 20% by volume. Please correct the concentrations entered on the Data Inputs sheet before continuing.", " ") -> 
A38: Fan Power Consumption (FP) | B38: = [(1.17 × 10-4) × Qwi × ΔP]/ε | D38: =((0.000117)*('Data Inputs'!B24)*('Data Inputs'!B25))/('Data Inputs'!B26/100) -> 93.7365 | E38: kW
A39: Qwo | B39: ≈ Qwi = | D39: =D36 -> 20000 | E39: scfm
A40: Operating temperature of oxidizer (Tfi) | B40: (From Data Inputs Tab) | D40: ='Data Inputs'!B28 -> 900 | E40: °F | O40: HR = | P40: =IF('Data Inputs'!X21=1,0,(IF('Data Inputs'!X21=2,0.35,(IF('Data Inputs'!X21=3,0.5,(IF('Data Inputs'!X21=4,0.7))))))) -> 0
A41: Temperature of waste gas at outlet to preheater (Two) | B41: = Heat Recovery × (Tfi - Twi) + Twi = | D41: =(P40*('Design Parameters'!D40-'Data Inputs'!B27)+'Data Inputs'!B27) -> 100 | E41: °F
A42: Temperature of flue gas exiting the oxidizer (Tfo) | B42: = Tfi - Two + Twi = | D42: =D40-D41+'Data Inputs'!B27 -> 900 | E42: °F | F42: Recuperative/catalytic oxidizer
A43: Temperature of flue gas exiting the regenerative oxidizer (Tfo) | B43: = Tfi - 0.95(Tfi - Twi) = | D43: =D40-(0.95*(D40-'Data Inputs'!B27)) -> 140 | E43: °F | F43: Regenerative oxidizer
A44: Heat Input of waste gas (-Δhcwi) | B44: = ∑ (-∆hci) xi Where (-∆hci) is the heat of combustion and xi the fraction of component "i" at 77 °F. | D44: =(W8/1000000)*'Data Inputs'!D9+(W9/1000000)*'Data Inputs'!D10+(W10/1000000)*'Data Inputs'!D11+(W11/1000000)*'Data Inputs'!D12+(W12/1000000)*'Data Inputs'!D13+(W13/1000000)*'Data Inputs'!D14+(W14/1000000)*'Data Inputs'!D15+(W15/1000000)*'Data Inputs'!D16+(W16/1000000)*'Data Inputs'!D17+(W17/1000000)*'Data Inputs'!D18 -> 4.18 | E44: Btu/scf | F44: =D44/0.0739 -> 56.56292287 | G44: Btu/lb
A45: Estimated Auxiliary Fuel Flow (Qaf) at 77 °F and 1 atm. | B45: =IF('Data Inputs'!V3=6,"(Calculated using Equation 2.45 in Appendix B)","(Calculated using Equation 2.21 in Chapter 2 of the Cost Manual)") -> (Calculated using Equation 2.21 in Chapter 2 of the Cost Manual) | D45: =IF('Data Inputs'!V3=6,T45,(IF('Data Inputs'!V3=1," ",P45))) -> 276.2306836 | E45: =IF(P45<0, "scfm*", "scfm") -> scfm | F45: =IF(D45<0, "Note: Negative value for calculated Qaf indicates that the waste gas is sufficient to support combustion.", " ") ->  | O45: Calculated Qaf = | P45: =((C25*D39*((IF('Data Inputs'!V3=2, C27, C26))*((1.1*D40)-D41-(0.1*C22))-F44))/(C24-(1.1*(IF('Data Inputs'!V3=2, C27, C26))*(D40-C22))))/C23 -> 276.2306836 | Q45: Recuperative Ox | R45: =IF($D$46<D47, $D$47, $P$45) -> 276.2306836 | S45: Calculated Qaf for Regen. = | T45: =V49 -> -8.79805984 | U45: Regenerative Ox | V45: =IF($T$45<D47, $D$47, $T$45) -> 15291.60891
A46: Auxiliary fuel Energy Input = | D46: =IF(D45>0,(C23*D45*C24), 0) -> 242332.0961 | E46: Btu/min | U46: Qaf calc. for Regenerative oxidizers:
A47: Minimum Energy required for combustion stabilization = | B47: = 5% × Total Energy Input = 0.05 × ρfi × Qfi × Cpmfi × (Tfi - Tref) = | D47: =((D39+(IF(D45<0, 0, D45)))*(C25)*(IF(OR('Data Inputs'!V3=2,'Data Inputs'!V3=6), C27, C26))*(D40-C22)*(5/100)) -> 15291.60891 | E47: Btu/min | U47: Numerator to Eq. 2.45 = | V47: =(C24-C27*(('Data Inputs'!B31/100)*('Data Inputs'!B28-'Design Parameters'!C22)+('Design Parameters'!D43-'Design Parameters'!C22))) -> 21485.935
A48: Is the calculated auxiliary fuel sufficient to stabilize combustion? (Note: If the auxiliary fuel energy input > 5% of Total Energy Input, then the auxilary fuel is sufficient.) | D48: =IF(D46>D47, "Yes", "No") -> Yes | F48: =IF(D48="Yes", " ", "Note: Additional auxiliary fuel equivalent to 5% of total energy input is required to stabilize combustion.") ->  | U48: Demonimator for Eq.2.45 = | V48: =D39*C25*(C27*((('Data Inputs'!B31/100)*('Data Inputs'!B28-C22))+(D43-C22))-F44) -> -59855.93
A49: ="Auxiliary fuel flow (Qaf) "&(IF(D48="No", "(adjusted for fuel required for combustion stabilization)", " "))&"at 77°F and 1 atm. =" -> Auxiliary fuel flow (Qaf) at 77°F and 1 atm. = | D49: =IF(D48="Yes", D45, (IF(D48="No",D47/( C23*C24)))) -> 276.2306836 | E49: scfm | U49: Qaf = | V49: =(V47/V48)/C23 -> -8.79805984
A50: Total Volumetric Throughput (Qtot) at 77 °F and 1 atm. | B50: = Qfi = Qwo + Qa + Qaf = Qwi + Qaf = | D50: =D39+D49 -> 20276.23068 | E50: =IF(P45<0, "scfm*", "scfm") -> scfm
A52: Calculation of Catalyst Volume and Estimated Temperature of Waste Gas Entering the Catalyst Bed
A53: Volumetric Flow Rate at 60 °F and 1 atm (Qft) | B53: = Qtot × (519)/(77 °F + 460) = | D53: =D50*(519/(77+460)) -> 19596.58049 | E53: scfm
A54: Catalyst Volume (Volcat) | B54: = Qft/Φ Where Qft is the volumetric flow rate of the waste gas (Qfi) corrected to 60 °F and 1 atm and Φ is the space velocity for the catalyst. | D54: =IF(OR('Data Inputs'!V3=3,'Data Inputs'!V3=4,'Data Inputs'!V3=5),((D53/'Data Inputs'!B35)*60),0) -> 39.19316099 | E54: ft3
A55: Estimated inlet temperature to the catalyst bed (Tri) = | B55: (Calculated using Equation 2.27 in Chapter 2 of the Cost Manual) | D55: =(C23*D49*(C24+(1.1*C26*C22))+(C25*D39*C26*(D41+(0.1*C22))))/(1.1*C26*(C23*D49+C25*D39)) -> 694.2269909 | E55: °F
A57: Capital Recovery Factor:
A59: Parameter | B59: Equation | D59: Calculated Value
A60: Capital Recovery Factor (CRF) = | B60: i (1+ i)n/(1+ i)n - 1 = | D60: =(('Data Inputs'!B42/100)*(1+('Data Inputs'!B42/100))^'Data Inputs'!B30)/(((1+('Data Inputs'!B42/100))^'Data Inputs'!B30)-1) -> 0.07521983481
B61: Where n = Equipment Life and i= Interest Rate
A63: Future Worth Factor
A65: Parameter | B65: Equation | D65: Calculated Value
A66: Future Worth Factor (FWF) = | B66: i [1/(1+ i)y - 1] = | D66: =IF(OR('Data Inputs'!V3=3,'Data Inputs'!V3=4,'Data Inputs'!V3=5),('Data Inputs'!B42/100)*(1/(((1+('Data Inputs'!B42/100))^'Data Inputs'!B33)-1)), " ") -> 0.2346150167
B67: Where y = Catalyst Life and i= Interest Rate

Sheet Cost Estimate
A1: Cost Estimate | G1: Catalytic - Fixed and Monolith | H1: Catalytic - Fluid-Bed | I1: Thermal - Recuperative
F2: 0 | G2: =IF(AND('Data Inputs'!$X$21=1, OR('Data Inputs'!$V$3=3, 'Data Inputs'!$V$3=4)),(1105*('Design Parameters'!D50)^(0.5471)),0) -> 251023.8511 | H2: =IF(AND('Data Inputs'!$X$21=1, 'Data Inputs'!$V$3=5),((84800)+(13.2*'Design Parameters'!D50)),0) -> 0 | I2: =IF(AND('Data Inputs'!$X$21=1, 'Data Inputs'!$V$3=2),(10294*('Design Parameters'!D50)^(0.2355)),0) -> 0
A3: Direct Costs | F3: 0.35 | G3: =IF(AND('Data Inputs'!X$21=2, OR('Data Inputs'!V$3=3, 'Data Inputs'!V$3=4)),(3623*('Design Parameters'!D50)^(0.4189)),0) -> 0 | H3: =IF(AND('Data Inputs'!X$21=2, 'Data Inputs'!$V$3=5),((88400)+(14.6*'Design Parameters'!D50)),0) -> 0 | I3: =IF(AND('Data Inputs'!$X$21=2, 'Data Inputs'!$V$3=2),(13149*('Design Parameters'!D50)^(0.2609)),0) -> 0
A4: ="Total Purchased equipment costs (in "&'Data Inputs'!B40&" dollars)" -> Total Purchased equipment costs (in 2016 dollars) | F4: 0.5 | G4: =IF(AND('Data Inputs'!X$21=3, OR('Data Inputs'!V$3=3, 'Data Inputs'!V$3=4)),(1215*('Design Parameters'!D50)^(0.5575)),0) -> 0 | H4: =IF(AND('Data Inputs'!X$21=3, 'Data Inputs'!$V$3=5),((86600)+(15.8*'Design Parameters'!D50)),0) -> 0 | I4: =IF(AND('Data Inputs'!$X$21=3, 'Data Inputs'!$V$3=2),(17056*('Design Parameters'!D50)^(0.2502)),0) -> 0
A5: Incinerator + auxiliary equipmenta (A) = | B5: =IF('Data Inputs'!V3=1,"Please select oxidzer type on the Data Inputs tab.", " ") ->  | F5: 0.7 | G5: =IF(AND('Data Inputs'!X$21=4, OR('Data Inputs'!V$3=3, 'Data Inputs'!V$3=4)),(1443*('Design Parameters'!D50)^(0.5527)),0) -> 0 | H5: =IF(AND('Data Inputs'!X$21=4,'Data Inputs'!$V$3=5),((83900)+(19.2*'Design Parameters'!D50)),0) -> 0 | I5: =IF(AND('Data Inputs'!$X$21=4, 'Data Inputs'!$V$3=2),(21342*('Design Parameters'!D50)^(0.25)),0) -> 0
A6: Equipment Costs (EC) for Regenerative Oxidizer | B6: =IF('Data Inputs'!V3=6,"=[2.664 x 100,000 + (13.98 x Qtot)] x ("&'Data Inputs'!B40&" CEPI/2016 CEPCI) = "," ") ->  | C6: =IF('Data Inputs'!V3=6,G12*G14, " ") ->  | D6: ="in "&'Data Inputs'!$B$40&" dollars" -> in 2016 dollars
A7: Equipment Costs (EC) for Recuperative Thermal Oxidizer | B7: =IF(AND('Data Inputs'!$X$21=1,'Data Inputs'!$V$3=2),"= (10,294 x Qtot^(0.2355))x ("&'Data Inputs'!B40&" CEPI/1999 CEPCI) =",IF(AND('Data Inputs'!$X$21=2,'Data Inputs'!$V$3=2),"= (13,149 x Qtot^(0.2609)) x ("&'Data Inputs'!B40&" CEPI/1999 CEPCI) =",IF(AND('Data Inputs'!$X$21=3,'Data Inputs'!$V$3=2),"= (17,056 x Qtot^(0.2502)) x ("&'Data Inputs'!B40&" CEPI/1999 CEPCI) =",IF(AND('Data Inputs'!$X$21=4,'Data Inputs'!$V$3=2),"= (21,342 x Qtot^(0.25)) x ("&'Data Inputs'!B40&" CEPI/1999 CEPCI) ="," ")))) ->  | C7: =IF('Data Inputs'!V3=2,I14, " ") ->  | D7: ="in "&'Data Inputs'!$B$40&" dollars" -> in 2016 dollars
A8: ="Equipment Costs (EC) for a "&(IF('Data Inputs'!V3=3,"Fixed Bed",IF('Data Inputs'!V3=4,"Monlith","Fixed Bed/Monolith")))&" Catalytic Oxidizer" -> Equipment Costs (EC) for a Fixed Bed Catalytic Oxidizer | B8: =IF(AND('Data Inputs'!$X$21=1,OR('Data Inputs'!$V$3=3,'Data Inputs'!V3=4 )),"= (1,105 x Qtot ^(0.5471)) x ("&'Data Inputs'!B40&" CEPI/1999 CEPCI) =",IF(AND('Data Inputs'!$X$21=2,OR('Data Inputs'!$V$3=3,'Data Inputs'!V3=4)),"= (3,623 x Qtot^(0.4189)) x ("&'Data Inputs'!B40&" CEPI/1999 CEPCI) =",IF(AND('Data Inputs'!$X$21=3,OR('Data Inputs'!$V$3=3, 'Data Inputs'!V3=4)),"= (1,215 x Qtot^(0.5575)) x ("&'Data Inputs'!B40&" CEPI/1999 CEPCI) =",IF(AND('Data Inputs'!$X$21=4,OR('Data Inputs'!$V$3=3,'Data Inputs'!V3=4)),"= (1,443 x Qtot^(0.5527)) x ("&'Data Inputs'!B40&" CEPI/1999 CEPCI) ="," ")))) -> = (1,105 x Qtot ^(0.5471)) x (2016 CEPI/1999 CEPCI) = | C8: =IF(OR('Data Inputs'!V3=3,'Data Inputs'!V3=4),I14, " ") -> 348130.1079 | D8: ="in "&'Data Inputs'!$B$40&" dollars" -> in 2016 dollars
A9: Equipment Costs (EC) for Fluid Bed Catalytic Oxidizer | B9: =IF(AND('Data Inputs'!$X$21=1,'Data Inputs'!$V$3=5),"= ((8.48 x 10,000) + (13.2 x Qtot)) x ("&'Data Inputs'!B40&" CEPI/1999 CEPCI) = ",IF(AND('Data Inputs'!$X$21=2,'Data Inputs'!$V$3=5),"= ((8.84 x 10,000) + (14.6 x Qtot)) x ("&'Data Inputs'!B40&" CEPI/1999 CEPCI) =",IF(AND('Data Inputs'!$X$21=3,'Data Inputs'!$V$3=5),"= ((8.66 x 10,000) + (15.8 x Qtot)) x ("&'Data Inputs'!B40&" CEPI/1999 CEPCI) =",IF(AND('Data Inputs'!$X$21=4,'Data Inputs'!$V$3=5),"= ((8.39 x 10,000) + (19.2 x Qtot)) x ("&'Data Inputs'!B40&" CEPI/1999 CEPCI) ="," ")))) ->  | C9: =IF('Data Inputs'!V3=5,I14, " ") ->  | D9: ="in "&'Data Inputs'!$B$40&" dollars" -> in 2016 dollars
A11: Instrumentationb = | B11: 0.10 × A = | C11: =0.1*I14 -> 34813.01079 | F11: Regenerative TO | G11: =IF('Data Inputs'!V3=6,266400+(13.98*'Design Parameters'!D50),0) -> 0
A12: Sales taxes = | B12: 0.03 × A = | C12: =0.03*I14 -> 10443.90324 | F12: EC | G12: =SUM(G2:G5)+SUM(H2:H5)+SUM(I2:I5)+G11 -> 251023.8511
A13: Freight = | B13: 0.05 × A = | C13: =0.05*I14 -> 17406.50539
F14: Escalation Factor | G14: ='Data Inputs'!B41/'Data Inputs'!E41 -> 1.386840758 | H14: A scaled to cost year = | I14: =(G12*G14) -> 348130.1079
A15: Total Purchased equipment costs (B) = | C15: =SUM(C11:C13)+I14 -> 410793.5273 | D15: ="in "&'Data Inputs'!$B$40&" dollars" -> in 2016 dollars
A16: Footnotes
A17: a - Auxiliary equipment includes equipment (e.g., duct work) normally not included with unit furnished by incinerator vendor.
A18: b - Includes the instrumentation and controls furnished by the incinerator vendor.
A20: ="Direct Installation Costs (in "&'Data Inputs'!B40&" dollars)" -> Direct Installation Costs (in 2016 dollars)
A21: Foundations and Supports = | B21: 0.08 × B = | C21: =0.08*C$15 -> 32863.48218
A22: Handlong and Errection = | B22: 0.14 × B = | C22: =0.14*C$15 -> 57511.09382
A23: Electrical = | B23: 0.04 × B = | C23: =0.04*C$15 -> 16431.74109
A24: Piping = | B24: 0.02 × B = | C24: =0.02*C$15 -> 8215.870546
A25: Insulation for Ductwork = | B25: 0.01 × B = | C25: =0.01*C$15 -> 4107.935273
A26: Painting = | B26: 0.01 × B = | C26: =0.01*C$15 -> 4107.935273
A27: Site Preparation (SP) = | C27: 0
A28: Buildings (Bldg) = | C28: 0
B29: Total Direct Installaton Costs = | C29: =SUM(C21:C28) -> 123238.0582
A30: Total Direct Costs (DC) = | B30: Total Purchase Equipment Costs (B) + Total Direct Installation Costs = | C30: =SUM(C21:C28)+C15 -> 534031.5855 | D30: ="in "&'Data Inputs'!$B$40&" dollars" -> in 2016 dollars
A32: ="Total Indirect Installation Costs (in "&'Data Inputs'!B40&" dollars)" -> Total Indirect Installation Costs (in 2016 dollars)
A34: Engineering = | B34: 0.10 × B = | C34: =0.1*C$15 -> 41079.35273
A35: Construction and field expenses = | B35: 0.05 × B = | C35: =0.05*C$15 -> 20539.67636
A36: Contractor fees = | B36: 0.10 × B = | C36: =0.1*C$15 -> 41079.35273
A37: Start-up = | B37: 0.02 × B = | C37: =0.02*C$15 -> 8215.870546
A38: Performance test = | B38: 0.01 × B = | C38: =0.01*C$15 -> 4107.935273
A40: Total Indirect Costs (IC) = | C40: =SUM(C34:C38) -> 115022.1876
A42: Continency Cost (C ) = | B42: CF(IC+DC)= | C42: =(C40+C30)*('Data Inputs'!B47/100) -> 64905.37731
A43: Total Capital Investment = | B43: DC + IC +C = | C43: =C30+C40+C42 -> 713959.1504 | D43: ="in "&'Data Inputs'!$B$40&" dollars" -> in 2016 dollars
A45: Direct Annual Costs
A47: Catalyst Replacement Cost | B47: = 1.08 × CC × Volcat × FWF Where CC is the $/ft3 cost for the replacement catalyst; Volcat is the volume of catalyst required based on the waste gas flow rate (Qft) and the catalyst space velocity (Φ); and FWF is the future worth factor. | C47: =IF(OR('Data Inputs'!V3=3,'Data Inputs'!V3=4,'Data Inputs'!V3=5), (1.08*'Data Inputs'!B34*'Design Parameters'!D54*'Design Parameters'!D66), 0) -> 3475.824957
A48: Annual Electricity Cost | B48: = Fan Power Consumption × Operating Hours/year × Electricity Price = | C48: =('Design Parameters'!D38*'Data Inputs'!B22*'Data Inputs'!B43) -> 55344.27928
A49: Annual Fuel Costs for Natural Gas | B49: = Costfuel × Fuel Usage Rate × 60 min/hr × Operating hours/year | C49: ='Data Inputs'!B44*'Design Parameters'!D49*60*'Data Inputs'!B22 -> 557517.4936
A50: Operating Labor | B50: Operator = 0.5hours/shift × Labor Rate × (Operating hours/8 hours/shift) | C50: =0.5*'Data Inputs'!B45*'Data Inputs'!B22/8 -> 14568.975
B51: Supervisor = 15% of Operator | C51: =0.15*C50 -> 2185.34625
A52: Maintenance Costs | B52: Labor = 0.5 hours/shift × Labor Rate × (Operating Hours/8 hours/shift) | C52: =0.5*'Data Inputs'!B46*'Data Inputs'!B22/8 -> 15001.5
B53: Materials = 100% of maintenance labor | C53: =C52 -> 15001.5
A55: Direct Annual Costs (DC) = | C55: =SUM(C47:C53) -> 663094.9191 | D55: ="in "&'Data Inputs'!$B$40&" dollars" -> in 2016 dollars
A57: Indirect Annual Costs
A59: Overhead | B59: = 60% of sum of operating, supervisor, maintenance labor and maintenance materials | C59: =0.6*(C50+C51+C52+C53) -> 28054.39275
A60: Administrative Charges | B60: = 2% of TCI | C60: =0.02*C43 -> 14279.18301
A61: Property Taxes | B61: = 1% of TCI | C61: =0.01*C43 -> 7139.591504
A62: Insurance | B62: = 1% of TCI | C62: =0.01*C43 -> 7139.591504
A63: Capital Recovery | B63: =IF('Data Inputs'!V3=2, "= CRF x TCI","= CRF[TCI-1.08(cat. Cost)]") -> = CRF[TCI-1.08(cat. Cost)] | C63: ='Design Parameters'!D60*(C43-1.08*(C47)) -> 53421.5223
A66: Indirect Annual Costs (IC) = | C66: =SUM(C59:C63) -> 110034.2811 | D66: ="in "&'Data Inputs'!$B$40&" dollars" -> in 2016 dollars
A68: Total Annual Cost = | B68: DC + IC = | C68: =C66+C55 -> 773129.2001 | D68: ="in "&'Data Inputs'!$B$40&" dollars" -> in 2016 dollars
A70: Cost Effectiveness
A72: Cost Effectiveness = (Total Annual Cost)/(Annual Quantity of VOC/HAP Pollutants Destroyed)
A74: Total Annual Cost (TAC) = | B74: =C68 -> 773129.2001 | C74: ="per year in "&'Data Inputs'!B40& " dollars" -> per year in 2016 dollars
A75: VOC/HAP Pollutants Destroyed = | B75: ='Data Inputs'!X19 -> 1731.338639 | C75: tons/year
A76: Cost Effectiveness = | B76: =B74/B75 -> 446.5499601 | C76: ="per ton of pollutants removed in "&'Data Inputs'!B40& " dollars" -> per ton of pollutants removed in 2016 dollars
